[Event "Hungarian Youth-ch I 2024"]
[Site "Szolnok"]
[Date "2024.04.03"]
[Round "5.5"]
[White "Barna, Peter"]
[Black "Jankovics, Emod"]
[Result "0-1"]
[ECO "B23"]
[WhiteElo "1702"]
[BlackElo "1699"]
[Annotator "NA RC"]
[PlyCount "96"]
[EventDate "2024.03.31"]
[EventType "swiss"]
[EventCountry "HUN"]
[SourceTitle "playchess.com"]
[Source "ChessBase"]
[SourceQuality "1"]
[TimeControl "5400+30"]

1. e4 {[%emt 0:00:01]} c5 {[%emt 0:00:06]} 2. Nc3 {[%emt 0:00:08]} Nc6 {[%emt 0:00:05]} 3. f4 {[%emt 0:00:04]} g6 {[%emt 0:00:03]} 4. Bb5 {[%emt 0:00:04]} Bg7 {[%emt 0:00:14]} 5. Nf3 {[%emt 0:00:18]} Nd4 {[%emt 0:00:13]} 6. O-O {[%emt 0:00:32]} Nxb5 {[%emt 0:00:51]} 7. Nxb5 {[%emt 0:00:06]} d5 {[%emt 0:01:10]} 8. exd5 {[%emt 0:07:27]} a6 {[%emt 0:01:43]} 9. Nc3 {[%emt 0:01:16]} Nf6 {[%emt 0:00:07]} 10. Na4 {[%emt 0:25:05]} Nxd5 {[%emt 0:08:41]} 11. Nxc5 {[%emt 0:00:24]} Nxf4 {[%emt 0:01:33]} 12. d4 {[%emt 0:00:26]} Bxd4+ {[%emt 0:06:57]} 13. Kh1 {[%emt 0:04:00]} Bxc5 {[%emt 0:01:07]} 14. Qxd8+ {[%emt 0:00:04]} Kxd8 {[%emt 0:00:07]} 15. Bxf4 {[%emt 0:00:08]} f6 {[%emt 0:02:23]} 16. Rad1+ {[%emt 0:06:49]} Ke8 {[%emt 0:01:44]} 17. h3 {[%emt 0:00:35]} g5 {[%emt 0:04:28]} 18. Bc7 {[%emt 0:03:26]} Bd7 {[%emt 0:01:45]} 19. Rd5 {[%emt 0:29:59]} Ba7 {[%emt 0:03:40]} 20. Re1 {[%emt 0:00:18]} Bc6 {[%emt 0:01:00]} 21. Rf5 {[%emt 0:00:05]} Bxf3 {[%emt 0:03:21]} 22. Rxf3 {[%emt 0:00:03]} Kf7 {[%emt 0:01:20]} 23. Rd3 {[%emt 0:07:02]} Rhe8 {[%emt 0:02:24]} 24. Rd7 {[%emt 0:01:14]} Bb8 {[%emt 0:31:19]} 25. Bb6 {[%emt 0:01:12]} Bg3 {[%emt 0:00:06]} 26. Re2 {[%emt 0:01:17]} Rac8 {[%emt 0:02:28]} 27. Rxb7 {[%emt 0:01:03]} Rcd8 {[%emt 0:00:40]} 28. Bxd8 {[%emt 0:00:27]} Rxd8 {[%emt 0:00:05]} 29. Rexe7+ {[%emt 0:00:44]} Kg6 {[%emt 0:00:23]} 30. Rbd7 {[%emt 0:00:49]} Rc8 {[%emt 0:02:33]} 31. c3 {[%emt 0:02:48]} Rc4 {[%emt 0:00:32]} 32. Rg7+ {[%emt 0:02:20]} Kf5 {[%emt 0:00:15]} 33. Rxh7 {[%emt 0:02:21]} Rf4 {[%emt 0:01:43]} 34. Rd1 {[%emt 0:00:37]} Rf2 {[%emt 0:01:15]} 35. Rb1 {[%emt 0:00:16]} Be5 {[%emt 0:01:09]} 36. Ra7 {[%emt 0:01:50]} Kf4 {[%emt 0:00:34]} 37. Rxa6 {[%emt 0:00:10]} Kg3 {[%emt 0:00:04]} 38. Ra4 {[%emt 0:00:31]} f5 {[%emt 0:01:56]} 39. b4 {[%emt 0:00:11]} f4 {[%emt 0:02:52]} 40. b5 {[%emt 0:01:08]} Bc7 {[%emt 0:00:09]} 41. c4 {[%emt 0:01:43]} Bb6 {[%emt 0:00:44]} 42. Ra6 {[%emt 0:01:05]} Be3 {[%emt 0:08:54]} 43. Ra3 {[%emt 0:01:06]} Rxg2 {[%emt 0:00:24]} 44. Rxe3+ {[%emt 0:00:43]} fxe3 {[%emt 0:00:12]} 45. Rb3 {[%emt 0:00:23]} Re2 {[%emt 0:00:20]} 46. Rb1 {[%emt 0:00:33]} Rd2 {[%emt 0:01:39]} 47. b6 {[%emt 0:00:35]} e2 {[%emt 0:01:31]} 48. Rb3+ {[%emt 0:00:31]} Kf2 {[%emt 0:00:18]} 0-1

[Event "Hungarian Youth-ch I 2024"]
[Site "Szolnok"]
[Date "2024.04.03"]
[Round "5.6"]
[White "Kolimar, Kristof Pal"]
[Black "Bodrogi, Bendeguz"]
[Result "1-0"]
[ECO "A06"]
[WhiteElo "2282"]
[BlackElo "2316"]
[Annotator "RC"]
[PlyCount "93"]
[EventDate "2024.03.31"]
[EventType "swiss"]
[EventCountry "HUN"]
[SourceTitle "playchess.com"]
[Source "ChessBase"]
[SourceQuality "1"]
[TimeControl "5400+30"]

1. Nf3 {[%emt 0:00:05]} d5 {[%emt 0:01:31]} 2. d4 {[%emt 0:00:04]} e6 {[%emt 0:00:17]} 3. c4 {[%emt 0:00:04]} Nf6 {[%emt 0:00:10]} 4. g3 {[%emt 0:00:25]} Nc6 {[%emt 0:00:09]} 5. Bg2 {[%emt 0:00:06]} Bd6 {[%emt 0:00:07]} 6. O-O {[%emt 0:00:02]} O-O {[%emt 0:00:12]} 7. b3 {[%emt 0:00:03]} dxc4 {[%emt 0:00:27]} 8. bxc4 {[%emt 0:00:02]} e5 {[%emt 0:00:13]} 9. c5 {[%emt 0:00:05]} Be7 {[%emt 0:00:08]} 10. dxe5 {[%emt 0:00:09]} Qxd1 {[%emt 0:00:06]} 11. Rxd1 {[%emt 0:00:05]} Ne4 {[%emt 0:00:07]} 12. Be3 {[%emt 0:00:27]} Bxc5 {[%emt 0:06:36]} 13. Bxc5 {[%emt 0:00:22]} Nxc5 {[%emt 0:00:25]} 14. Na3 {[%emt 0:00:02]} Be6 {[%emt 0:00:24]} 15. Rac1 {[%emt 0:05:40]} Na6 {[%emt 0:36:09]} 16. Nb5 {[%emt 0:18:10]} Bxa2 {[%emt 0:13:00]} 17. Rd2 {[%emt 0:09:10]} Nab4 {[%emt 0:10:24]} 18. Nxc7 {[%emt 0:21:39]} Rad8 {[%emt 0:01:26]} 19. Rb2 {[%emt 0:04:00]} a5 {[%emt 0:02:16]} 20. Bh3 {[%emt 0:06:38]} Rb8 {[%emt 0:13:28]} 21. e6 {[%emt 0:06:08]} fxe6 {[%emt 0:00:10]} 22. Rxa2 {[%emt 0:02:27]} Nxa2 {[%emt 0:00:04]} 23. Bxe6+ {[%emt 0:00:04]} Kh8 {[%emt 0:00:05]} 24. Bxa2 {[%emt 0:00:04]} Rfc8 {[%emt 0:02:18]} 25. Nd5 {[%emt 0:02:12]} b5 {[%emt 0:00:31]} 26. Ng5 {[%emt 0:07:06]} Nd8 {[%emt 0:07:10]} 27. Rd1 {[%emt 0:05:04]} h6 {[%emt 0:00:11]} 28. Nf3 {[%emt 0:06:39]} Nc6 {[%emt 0:00:58]} 29. Nf4 {[%emt 0:02:49]} g5 {[%emt 0:01:37]} 30. Ne6 {[%emt 0:01:54]} a4 {[%emt 0:02:12]} 31. Bb1 {[%emt 0:01:23]} Ra8 {[%emt 0:01:36]} 32. Rd6 {[%emt 0:02:16]} a3 {[%emt 0:00:57]} 33. Nc5 {[%emt 0:00:59]} Ne7 {[%emt 0:00:28]} 34. Rxh6+ {[%emt 0:00:26]} Kg7 {[%emt 0:00:47]} 35. Rh7+ {[%emt 0:00:30]} Kg8 {[%emt 0:00:23]} 36. Ne6 {[%emt 0:00:36]} Rc1+ {[%emt 0:00:54]} 37. Kg2 {[%emt 0:00:02]} Rxb1 {[%emt 0:00:25]} 38. Rg7+ {[%emt 0:00:08]} Kh8 {[%emt 0:00:04]} 39. Ne5 {[%emt 0:00:44]} Rf8 {[%emt 0:00:23]} 40. Rxe7 {[%emt 0:00:29]} Rf6 {[%emt 0:00:29]} 41. Re8+ {[%emt 0:00:30]} Kh7 {[%emt 0:00:04]} 42. Nxg5+ {[%emt 0:00:25]} Kh6 {[%emt 0:00:59]} 43. Rg8 {[%emt 0:00:39]} Rf5 {[%emt 0:00:53]} 44. Rg6+ {[%emt 0:00:44]} Kh5 {[%emt 0:00:08]} 45. g4+ {[%emt 0:00:05]} Kh4 {[%emt 0:00:08]} 46. Ngf3+ {[%emt 0:00:05]} Rxf3 {[%emt 0:00:06]} 47. Nxf3# 1-0

[Event "Hungarian Youth-ch I 2024"]
[Site "Szolnok"]
[Date "2024.04.03"]
[Round "5.7"]
[White "Turcsanyi, Vince Gergo"]
[Black "Panda, Barnabas"]
[Result "1-0"]
[ECO "A13"]
[WhiteElo "2247"]
[BlackElo "2066"]
[Annotator "RC"]
[PlyCount "63"]
[EventDate "2024.03.31"]
[EventType "swiss"]
[EventCountry "HUN"]
[SourceTitle "playchess.com"]
[Source "ChessBase"]
[SourceQuality "1"]
[TimeControl "5400+30"]

1. c4 {[%emt 0:00:18]} e6 {[%emt 0:00:17]} 2. Nf3 {[%emt 0:00:10]} Nf6 {[%emt 0:00:16]} 3. Nc3 {[%emt 0:00:11]} d5 {[%emt 0:00:14]} 4. e3 {[%emt 0:00:08]} Be7 {[%emt 0:00:25]} 5. b3 {[%emt 0:00:14]} O-O {[%emt 0:00:13]} 6. Bb2 {[%emt 0:00:04]} c5 {[%emt 0:00:16]} 7. cxd5 {[%emt 0:00:25]} Nxd5 {[%emt 0:00:18]} 8. h4 {[%emt 0:02:30]} Nc6 {[%emt 0:05:38]} 9. a3 {[%emt 0:01:10]} b6 {[%emt 0:08:53]} 10. Bd3 {[%emt 0:11:01]} f5 {[%emt 0:06:08]} 11. Qb1 {[%emt 0:04:43]} Bf6 {[%emt 0:07:42]} 12. g4 {[%emt 0:07:54]} Ne5 {[%emt 0:04:37]} 13. Nxe5 {[%emt 0:06:22]} Bxe5 {[%emt 0:00:09]} 14. gxf5 {[%emt 0:26:08]} Nxc3 {[%emt 0:01:24]} 15. Bxc3 {[%emt 0:10:18]} Bxc3 {[%emt 0:00:52]} 16. dxc3 {[%emt 0:00:10]} exf5 {[%emt 0:05:49]} 17. Qc2 {[%emt 0:04:33]} Bb7 {[%emt 0:03:39]} 18. Rg1 {[%emt 0:04:26]} Qxh4 {[%emt 0:07:09]} 19. O-O-O {[%emt 0:00:44]} Be4 {[%emt 0:07:16]} 20. Bc4+ {[%emt 0:05:19]} Kh8 {[%emt 0:00:22]} 21. Qe2 {[%emt 0:00:06]} Qf6 {[%emt 0:03:14]} 22. Kb2 {[%emt 0:00:29]} Rad8 {[%emt 0:00:37]} 23. a4 {[%emt 0:03:05]} Rxd1 {[%emt 0:09:16]} 24. Rxd1 {[%emt 0:00:05]} Rd8 {[%emt 0:00:07]} 25. Rxd8+ {[%emt 0:00:59]} Qxd8 {[%emt 0:00:09]} 26. f3 {[%emt 0:00:08]} Bc6 {[%emt 0:03:43]} 27. e4 {[%emt 0:00:34]} Qa8 {[%emt 0:09:09]} 28. exf5 {[%emt 0:03:05]} Bxf3 {[%emt 0:01:14]} 29. Qe7 {[%emt 0:00:43]} Bh5 {[%emt 0:03:59]} 30. f6 {[%emt 0:01:11]} Qg2+ {[%emt 0:00:11]} 31. Ka3 {[%emt 0:00:10]} h6 {[%emt 0:00:11]} 32. Qf8+ {[%emt 0:00:12]} 1-0

[Event "Hungarian Youth-ch I 2024"]
[Site "Szolnok"]
[Date "2024.04.03"]
[Round "5.8"]
[White "Csernyik, Mark"]
[Black "Szegedy, Matyas"]
[Result "1-0"]
[ECO "B13"]
[WhiteElo "2016"]
[BlackElo "2177"]
[Annotator "RC"]
[PlyCount "63"]
[EventDate "2024.03.31"]
[EventType "swiss"]
[EventCountry "HUN"]
[SourceTitle "playchess.com"]
[Source "ChessBase"]
[SourceQuality "1"]
[TimeControl "5400+30"]

1. e4 {[%emt 0:00:03]} c6 {[%emt 0:01:00]} 2. d4 {[%emt 0:00:09]} d5 {[%emt 0:00:08]} 3. exd5 {[%emt 0:00:05]} cxd5 {[%emt 0:00:08]} 4. Nf3 {[%emt 0:00:03]} Nf6 {[%emt 0:01:33]} 5. Ne5 {[%emt 0:00:42]} g6 {[%emt 0:00:41]} 6. Bb5+ {[%emt 0:01:28]} Nbd7 {[%emt 0:00:56]} 7. O-O {[%emt 0:00:20]} Bg7 {[%emt 0:00:10]} 8. c4 {[%emt 0:02:17]} O-O {[%emt 0:01:21]} 9. Nc3 {[%emt 0:02:17]} a6 {[%emt 0:32:24]} 10. Bxd7 {[%emt 0:03:12]} Bxd7 {[%emt 0:00:19]} 11. cxd5 {[%emt 0:02:34]} Bb5 {[%emt 0:01:09]} 12. Re1 {[%emt 0:08:37]} Nxd5 {[%emt 0:01:07]} 13. a4 {[%emt 0:01:04]} Bc6 {[%emt 0:02:32]} 14. Nxc6 {[%emt 0:03:35]} bxc6 {[%emt 0:00:08]} 15. Bg5 {[%emt 0:01:59]} Re8 {[%emt 0:04:20]} 16. Qd2 {[%emt 0:02:27]} Ra7 {[%emt 0:01:01]} 17. Bh6 {[%emt 0:03:07]} Bh8 {[%emt 0:01:27]} 18. Rac1 {[%emt 0:04:02]} Rb7 {[%emt 0:10:50]} 19. Ne4 {[%emt 0:11:16]} Rb4 {[%emt 0:10:39]} 20. Rxc6 {[%emt 0:01:05]} Rxa4 {[%emt 0:00:32]} 21. Qe2 {[%emt 0:02:09]} Qa8 {[%emt 0:16:14]} 22. Rec1 {[%emt 0:08:34]} Rxd4 {[%emt 0:01:19]} 23. Ng5 {[%emt 0:01:50]} Nf4 {[%emt 0:02:42]} 24. Qf3 {[%emt 0:02:50]} Red8 {[%emt 0:05:49]} 25. h4 {[%emt 0:01:53]} Be5 {[%emt 0:02:31]} 26. g3 {[%emt 0:01:26]} Rd3 {[%emt 0:00:05]} 27. Qe4 {[%emt 0:00:21]} Rd1+ {[%emt 0:01:42]} 28. Rxd1 {[%emt 0:00:38]} Rxd1+ {[%emt 0:00:04]} 29. Kh2 {[%emt 0:00:13]} Qb8 {[%emt 0:01:36]} 30. gxf4 {[%emt 0:01:17]} Bxf4+ {[%emt 0:00:04]} 31. Kg2 {[%emt 0:00:28]} Rd8 {[%emt 0:00:58]} 32. Nxf7 {[%emt 0:00:47]} 1-0

[Event "Hungarian Youth-ch I 2024"]
[Site "Szolnok"]
[Date "2024.04.03"]
[Round "5.9"]
[White "Apro, Barnabas"]
[Black "Foldes, Marton Gabor"]
[Result "1-0"]
[ECO "B48"]
[WhiteElo "2026"]
[BlackElo "2162"]
[Annotator "RC"]
[PlyCount "111"]
[EventDate "2024.03.31"]
[EventType "swiss"]
[EventCountry "HUN"]
[SourceTitle "playchess.com"]
[Source "ChessBase"]
[SourceQuality "1"]
[TimeControl "5400+30"]

1. e4 {[%emt 0:00:05]} c5 {[%emt 0:00:16]} 2. Nf3 {[%emt 0:00:07]} e6 {[%emt 0:00:05]} 3. d4 {[%emt 0:00:11]} cxd4 {[%emt 0:00:04]} 4. Nxd4 {[%emt 0:00:07]} Nc6 {[%emt 0:00:04]} 5. Nc3 {[%emt 0:00:10]} Qc7 {[%emt 0:00:05]} 6. Be3 {[%emt 0:00:17]} a6 {[%emt 0:00:04]} 7. Qd2 {[%emt 0:00:08]} Nf6 {[%emt 0:01:10]} 8. O-O-O {[%emt 0:00:09]} Be7 {[%emt 0:10:58]} 9. f3 {[%emt 0:00:56]} O-O {[%emt 0:03:38]} 10. g4 {[%emt 0:01:01]} Nxd4 {[%emt 0:00:36]} 11. Bxd4 {[%emt 0:00:08]} b5 {[%emt 0:02:07]} 12. g5 {[%emt 0:03:52]} Nh5 {[%emt 0:01:14]} 13. Ne2 {[%emt 0:00:36]} Bb7 {[%emt 0:28:00]} 14. Bh3 {[%emt 0:01:18]} g6 {[%emt 0:03:11]} 15. Bg4 {[%emt 0:01:44]} Ng7 {[%emt 0:01:58]} 16. h4 {[%emt 0:11:58]} e5 {[%emt 0:10:24]} 17. Be3 {[%emt 0:01:56]} d5 {[%emt 0:01:19]} 18. exd5 {[%emt 0:02:39]} Rad8 {[%emt 0:00:44]} 19. Qc3 {[%emt 0:01:55]} Qxc3 {[%emt 0:02:22]} 20. Nxc3 {[%emt 0:00:05]} b4 {[%emt 0:04:30]} 21. Ne4 {[%emt 0:04:34]} Rxd5 {[%emt 0:01:43]} 22. Rxd5 {[%emt 0:01:18]} Bxd5 {[%emt 0:00:02]} 23. Rd1 {[%emt 0:00:46]} Bxe4 {[%emt 0:03:01]} 24. fxe4 {[%emt 0:00:06]} f5 {[%emt 0:02:53]} 25. Be2 {[%emt 0:03:29]} fxe4 {[%emt 0:02:16]} 26. Rd7 {[%emt 0:00:48]} Nf5 {[%emt 0:01:07]} 27. Bc4+ {[%emt 0:03:49]} Kh8 {[%emt 0:02:41]} 28. Bb6 {[%emt 0:01:04]} Rc8 {[%emt 0:15:43]} 29. Bd5 {[%emt 0:14:55]} Bf8 {[%emt 0:00:36]} 30. h5 {[%emt 0:06:08]} e3 {[%emt 0:00:50]} 31. Bc7 {[%emt 0:01:12]} Re8 {[%emt 0:01:07]} 32. Bf7 {[%emt 0:01:55]} Re7 {[%emt 0:01:08]} 33. Rxe7 {[%emt 0:00:33]} Nxe7 {[%emt 0:00:22]} 34. h6 {[%emt 0:00:05]} Nc6 {[%emt 0:00:34]} 35. Bd5 {[%emt 0:00:11]} Be7 {[%emt 0:00:32]} 36. Bxc6 {[%emt 0:00:45]} Bxg5 {[%emt 0:00:02]} 37. Bxe5+ {[%emt 0:00:14]} Kg8 {[%emt 0:00:01]} 38. Bd5+ {[%emt 0:00:13]} Kf8 {[%emt 0:00:01]} 39. Bg7+ {[%emt 0:00:10]} Ke7 {[%emt 0:01:03]} 40. Kd1 {[%emt 0:00:05]} Kd6 {[%emt 0:01:18]} 41. Bg8 {[%emt 0:00:12]} Ke7 {[%emt 0:00:16]} 42. Ke2 {[%emt 0:01:24]} a5 {[%emt 0:00:23]} 43. Kf3 {[%emt 0:02:04]} a4 {[%emt 0:00:17]} 44. c4 {[%emt 0:02:13]} bxc3 {[%emt 0:00:24]} 45. bxc3 {[%emt 0:00:04]} Ke8 {[%emt 0:00:28]} 46. c4 {[%emt 0:00:10]} Ke7 {[%emt 0:00:07]} 47. c5 {[%emt 0:00:19]} Kd7 {[%emt 0:00:15]} 48. Bxh7 {[%emt 0:00:22]} Kc6 {[%emt 0:01:07]} 49. Bxg6 {[%emt 0:00:10]} Bxh6 {[%emt 0:00:10]} 50. Bxh6 {[%emt 0:00:08]} Kxc5 {[%emt 0:00:03]} 51. Bxe3+ {[%emt 0:00:16]} Kb4 {[%emt 0:00:06]} 52. Bf7 {[%emt 0:00:19]} Ka3 {[%emt 0:00:38]} 53. Bc5+ {[%emt 0:00:17]} Kb2 {[%emt 0:00:06]} 54. a3 {[%emt 0:00:18]} Kc3 {[%emt 0:00:59]} 55. Ke4 {[%emt 0:00:10]} Kb2 {[%emt 0:00:05]} 56. Kd4 {[%emt 0:00:10]} 1-0

[Event "Hungarian Youth-ch I 2024"]
[Site "Szolnok"]
[Date "2024.04.03"]
[Round "5.10"]
[White "Varga, Boldizsar"]
[Black "Megyaszai, Balazs"]
[Result "0-1"]
[ECO "A13"]
[WhiteElo "1990"]
[BlackElo "2029"]
[Annotator "RC"]
[PlyCount "168"]
[EventDate "2024.03.31"]
[EventType "swiss"]
[EventCountry "HUN"]
[SourceTitle "playchess.com"]
[Source "ChessBase"]
[SourceQuality "1"]
[TimeControl "5400+30"]

1. c4 {[%emt 0:00:06]} e6 {[%emt 0:00:48]} 2. Nf3 {[%emt 0:00:14]} d5 {[%emt 0:00:38]} 3. g3 {[%emt 0:00:13]} Nf6 {[%emt 0:00:53]} 4. Bg2 {[%emt 0:00:08]} d4 {[%emt 0:00:52]} 5. O-O {[%emt 0:02:24]} Nc6 {[%emt 0:01:30]} 6. d3 {[%emt 0:01:13]} Bc5 {[%emt 0:02:18]} 7. a3 {[%emt 0:09:11]} a5 {[%emt 0:02:16]} 8. Nbd2 {[%emt 0:01:52]} O-O {[%emt 0:01:07]} 9. Ng5 {[%emt 0:01:51]} e5 {[%emt 0:09:31]} 10. Nge4 {[%emt 0:03:27]} Nxe4 {[%emt 0:12:58]} 11. Nxe4 {[%emt 0:00:07]} Be7 {[%emt 0:00:22]} 12. f4 {[%emt 0:00:57]} exf4 {[%emt 0:08:55]} 13. Bxf4 {[%emt 0:02:34]} f5 {[%emt 0:05:42]} 14. Nf2 {[%emt 0:00:58]} Bd6 {[%emt 0:02:49]} 15. Nh3 {[%emt 0:03:15]} Qe7 {[%emt 0:01:59]} 16. Qd2 {[%emt 0:04:31]} Ne5 {[%emt 0:07:33]} 17. Bxe5 {[%emt 0:08:00]} Bxe5 {[%emt 0:02:15]} 18. Rae1 {[%emt 0:00:55]} Bf6 {[%emt 0:05:48]} 19. Kh1 {[%emt 0:02:19]} c6 {[%emt 0:01:57]} 20. e4 {[%emt 0:03:49]} dxe3 {[%emt 0:00:42]} 21. Rxe3 {[%emt 0:00:57]} Qd6 {[%emt 0:01:31]} 22. Rfe1 {[%emt 0:09:41]} Bd7 {[%emt 0:01:41]} 23. Nf4 {[%emt 0:06:26]} Qc5 {[%emt 0:08:44]} 24. Qe2 {[%emt 0:13:45]} Rad8 {[%emt 0:03:32]} 25. Bf1 {[%emt 0:05:27]} Qb6 {[%emt 0:03:01]} 26. Ne6 {[%emt 0:11:30]} Bxe6 {[%emt 0:08:03]} 27. Rxe6 {[%emt 0:00:03]} Qxb2 {[%emt 0:00:41]} 28. Qxb2 {[%emt 0:00:15]} Bxb2 {[%emt 0:00:02]} 29. a4 {[%emt 0:00:21]} Bf6 {[%emt 0:00:43]} 30. Kg2 {[%emt 0:01:34]} Kf7 {[%emt 0:00:49]} 31. Kf3 {[%emt 0:00:13]} Rd7 {[%emt 0:00:18]} 32. h3 {[%emt 0:01:47]} Ra8 {[%emt 0:00:34]} 33. R6e3 {[%emt 0:01:34]} Bd4 {[%emt 0:00:41]} 34. R3e2 {[%emt 0:00:42]} Bc3 {[%emt 0:00:40]} 35. Rd1 {[%emt 0:00:08]} Ra6 {[%emt 0:01:04]} 36. Rc2 {[%emt 0:00:53]} Bf6 {[%emt 0:00:14]} 37. Rb1 {[%emt 0:00:16]} Ra8 {[%emt 0:01:17]} 38. Re1 {[%emt 0:01:52]} Re8 {[%emt 0:00:53]} 39. Rxe8 {[%emt 0:00:23]} Kxe8 {[%emt 0:00:02]} 40. Re2+ {[%emt 0:01:18]} Kd8 {[%emt 0:00:32]} 41. Re1 {[%emt 0:00:29]} Kc7 {[%emt 0:00:11]} 42. Rb1 {[%emt 0:01:15]} Kd6 {[%emt 0:00:08]} 43. Ke3 {[%emt 0:01:01]} Bg5+ {[%emt 0:00:34]} 44. Kf3 {[%emt 0:01:27]} Kc5 {[%emt 0:00:08]} 45. g4 {[%emt 0:00:53]} fxg4+ {[%emt 0:00:36]} 46. Kxg4 {[%emt 0:00:23]} h6 {[%emt 0:00:09]} 47. Kf5 {[%emt 0:00:38]} Kd4 {[%emt 0:01:31]} 48. Kg4 {[%emt 0:00:40]} Kc3 {[%emt 0:00:09]} 49. Kf3 {[%emt 0:00:29]} Kc2 {[%emt 0:00:11]} 50. Re1 {[%emt 0:00:28]} Kb3 {[%emt 0:00:09]} 51. Ra1 {[%emt 0:00:37]} Bf6 {[%emt 0:00:19]} 52. Rb1+ {[%emt 0:00:05]} Kxa4 {[%emt 0:00:32]} 53. Ke2 {[%emt 0:00:04]} Ka3 {[%emt 0:01:27]} 54. Kd1 {[%emt 0:00:12]} Ka2 {[%emt 0:01:19]} 55. Kc2 {[%emt 0:00:12]} a4 {[%emt 0:00:39]} 56. Rb4 {[%emt 0:01:31]} a3 {[%emt 0:00:31]} 57. c5 {[%emt 0:00:45]} Bb2 {[%emt 0:00:35]} 58. Bg2 {[%emt 0:00:39]} Rf7 {[%emt 0:00:26]} 59. Be4 {[%emt 0:00:25]} Rf2+ {[%emt 0:01:19]} 60. Kd1 {[%emt 0:00:04]} Rf1+ {[%emt 0:00:39]} 61. Kc2 {[%emt 0:00:37]} Rc1+ {[%emt 0:01:27]} 62. Kd2 {[%emt 0:00:02]} Bc3+ {[%emt 0:00:48]} 63. Kxc1 {[%emt 0:00:02]} Bxb4 {[%emt 0:00:07]} 64. Kc2 {[%emt 0:00:06]} Bxc5 {[%emt 0:00:06]} 65. Bf5 {[%emt 0:01:11]} Bd4 {[%emt 0:00:33]} 66. Bc8 {[%emt 0:01:04]} b6 {[%emt 0:00:07]} 67. Bd7 {[%emt 0:00:27]} c5 {[%emt 0:00:06]} 68. Be6+ {[%emt 0:00:34]} Ka1 {[%emt 0:00:02]} 69. Bd7 {[%emt 0:00:06]} g5 {[%emt 0:00:19]} 70. Be8 {[%emt 0:00:47]} a2 {[%emt 0:00:20]} 71. Bc6 {[%emt 0:01:02]} Bc3 {[%emt 0:00:35]} 72. Be8 {[%emt 0:00:21]} Bg7 {[%emt 0:00:36]} 73. Bc6 {[%emt 0:00:21]} h5 {[%emt 0:00:54]} 74. Bf3 {[%emt 0:00:38]} g4 {[%emt 0:00:56]} 75. hxg4 {[%emt 0:00:10]} h4 {[%emt 0:00:13]} 76. Bc6 {[%emt 0:00:33]} h3 {[%emt 0:00:07]} 77. Kc1 {[%emt 0:00:58]} h2 {[%emt 0:00:05]} 78. Kc2 {[%emt 0:00:31]} Bf6 {[%emt 0:00:05]} 79. Kc1 {[%emt 0:00:15]} b5 {[%emt 0:00:12]} 80. g5 {[%emt 0:00:46]} Bxg5+ {[%emt 0:00:05]} 81. Kc2 {[%emt 0:00:04]} Bf6 {[%emt 0:00:07]} 82. Be4 {[%emt 0:00:57]} Bd4 {[%emt 0:00:04]} 83. Bd5 {[%emt 0:00:10]} b4 {[%emt 0:00:04]} 84. Be4 {[%emt 0:00:18]} b3+ {[%emt 0:00:04]} 0-1

[Event "Hungarian Youth-ch I 2024"]
[Site "Szolnok"]
[Date "2024.04.03"]
[Round "5.11"]
[White "Feher, Botond"]
[Black "Lehocz, Jozsef Jr."]
[Result "1/2-1/2"]
[ECO "A80"]
[WhiteElo "2018"]
[BlackElo "2143"]
[Annotator "RC"]
[PlyCount "79"]
[EventDate "2024.03.31"]
[EventType "swiss"]
[EventCountry "HUN"]
[SourceTitle "playchess.com"]
[Source "ChessBase"]
[SourceQuality "1"]
[TimeControl "5400+30"]

1. d4 {[%emt 0:00:07]} f5 {[%emt 0:00:40]} 2. Nc3 {[%emt 0:00:29]} d5 {[%emt 0:01:05]} 3. f3 {[%emt 0:03:31]} c5 {[%emt 0:01:47]} 4. e4 {[%emt 0:21:19]} e5 {[%emt 0:01:30]} 5. Nxd5 {[%emt 0:16:35]} cxd4 {[%emt 0:04:41]} 6. Bc4 {[%emt 0:05:15]} fxe4 {[%emt 0:17:00]} 7. fxe4 {[%emt 0:00:29]} Qh4+ {[%emt 0:01:19]} 8. Kf1 {[%emt 0:00:38]} Bd6 {[%emt 0:05:39]} 9. Qf3 {[%emt 0:02:49]} Ne7 {[%emt 0:06:04]} 10. g3 {[%emt 0:07:30]} Qg4 {[%emt 0:08:44]} 11. h3 {[%emt 0:00:58]} Qg6 {[%emt 0:01:53]} 12. Nxe7 {[%emt 0:04:10]} Bxe7 {[%emt 0:00:54]} 13. Kg2 {[%emt 0:00:34]} Rf8 {[%emt 0:00:59]} 14. Qd3 {[%emt 0:01:02]} Nc6 {[%emt 0:05:19]} 15. Bd2 {[%emt 0:00:56]} Bd7 {[%emt 0:02:20]} 16. Ne2 {[%emt 0:02:05]} O-O-O {[%emt 0:00:54]} 17. Bd5 {[%emt 0:01:24]} Be6 {[%emt 0:02:58]} 18. Bxe6+ {[%emt 0:02:48]} Qxe6 {[%emt 0:00:08]} 19. a3 {[%emt 0:01:25]} Rf7 {[%emt 0:01:52]} 20. Rhf1 {[%emt 0:01:11]} Rdf8 {[%emt 0:00:22]} 21. Ng1 {[%emt 0:00:26]} Kb8 {[%emt 0:02:19]} 22. Rf3 {[%emt 0:03:46]} Rxf3 {[%emt 0:07:32]} 23. Nxf3 {[%emt 0:00:20]} h6 {[%emt 0:03:55]} 24. Nh2 {[%emt 0:04:54]} Nd8 {[%emt 0:01:34]} 25. Rf1 {[%emt 0:05:07]} Nf7 {[%emt 0:02:00]} 26. Rf5 {[%emt 0:01:31]} Nd6 {[%emt 0:01:17]} 27. Rxf8+ {[%emt 0:00:27]} Bxf8 {[%emt 0:00:02]} 28. Bb4 {[%emt 0:01:39]} Be7 {[%emt 0:01:01]} 29. Bxd6+ {[%emt 0:00:09]} Bxd6 {[%emt 0:00:32]} 30. a4 {[%emt 0:00:41]} Qa2 {[%emt 0:03:29]} 31. b3 {[%emt 0:00:19]} a6 {[%emt 0:01:09]} 32. Nf3 {[%emt 0:00:35]} Qb1 {[%emt 0:01:39]} 33. Nd2 {[%emt 0:00:59]} Qc1 {[%emt 0:02:57]} 34. Nc4 {[%emt 0:00:36]} Bc7 {[%emt 0:00:29]} 35. Qd2 {[%emt 0:00:15]} Qb1 {[%emt 0:01:40]} 36. Qe2 {[%emt 0:02:12]} Qc1 {[%emt 0:00:21]} 37. Qd3 {[%emt 0:01:15]} Ka7 {[%emt 0:00:43]} 38. Nd2 {[%emt 0:01:05]} Bd8 {[%emt 0:01:08]} 39. Nf3 {[%emt 0:00:35]} Bf6 {[%emt 0:00:38]} 40. Qd2 {[%emt 0:01:03]} 1/2-1/2